[Event "FIDE WYCC Girls U14 2023"]
[Site "Montesilvano"]
[Date "2023.11.16"]
[Round "4.30"]
[White "Comarnitcaia, Ecaterina"]
[Black "Andries, Alexia"]
[Result "0-1"]
[ECO "B56"]
[WhiteElo "1424"]
[BlackElo "1750"]
[Annotator "NA RC"]
[PlyCount "96"]
[EventDate "2023.11.13"]
[EventType "swiss"]
[EventCountry "ITA"]
[SourceTitle "playchess.com"]
[Source "ChessBase"]
[SourceQuality "1"]
[TimeControl "40/5400+30:1800+30"]

1. e4 {[%emt 0:00:10]} c5 {[%emt 0:00:05]} 2. Nf3 {[%emt 0:00:14]} Nc6 {[%emt 0:00:06]} 3. d4 {[%emt 0:00:19]} cxd4 {[%emt 0:00:05]} 4. Nxd4 {[%emt 0:00:05]} Nf6 {[%emt 0:00:06]} 5. Nc3 {[%emt 0:00:27]} d6 {[%emt 0:00:04]} 6. h3 {[%emt 0:01:16]} e5 {[%emt 0:01:22]} 7. Nb3 {[%emt 0:00:18]} Be6 {[%emt 0:00:24]} 8. Be3 {[%emt 0:00:27]} Be7 {[%emt 0:00:51]} 9. Be2 {[%emt 0:00:10]} O-O {[%emt 0:00:06]} 10. O-O {[%emt 0:00:04]} a5 {[%emt 0:00:03]} 11. a4 {[%emt 0:04:58]} Nb4 {[%emt 0:05:17]} 12. Bd3 {[%emt 0:10:48]} Nxd3 {[%emt 0:11:18]} 13. cxd3 {[%emt 0:01:09]} d5 {[%emt 0:00:10]} 14. Bc5 {[%emt 0:05:24]} d4 {[%emt 0:02:09]} 15. Bxe7 Qxe7 {[%emt 0:00:06]} 16. Na2 {[%emt 0:11:32]} b6 {[%emt 0:00:19]} 17. Nd2 {[%emt 0:00:30]} Rac8 {[%emt 0:01:00]} 18. b3 {[%emt 0:00:18]} Nd7 {[%emt 0:08:28]} 19. Nc4 {[%emt 0:01:59]} Qg5 {[%emt 0:04:00]} 20. Qf3 {[%emt 0:02:29]} f5 {[%emt 0:09:52]} 21. exf5 {[%emt 0:09:11]} Rxf5 {[%emt 0:00:15]} 22. Qg4 {[%emt 0:03:22]} Qe7 {[%emt 0:01:03]} 23. Qe2 {[%emt 0:00:32]} Rcf8 {[%emt 0:01:09]} 24. Nc1 {[%emt 0:05:20]} Rg5 {[%emt 0:05:01]} 25. Kh2 {[%emt 0:04:32]} Bd5 {[%emt 0:01:56]} 26. f3 {[%emt 0:00:36]} Qf6 {[%emt 0:02:55]} 27. Qf2 {[%emt 0:04:57]} Qg6 {[%emt 0:05:40]} 28. Ra2 {[%emt 0:10:35]} Rh5 {[%emt 0:17:41]} 29. Re2 {[%emt 0:06:03]} Rhf5 {[%emt 0:05:56]} 30. Qe1 {[%emt 0:05:56]} Qf6 {[%emt 0:02:46]} 31. Kg1 {[%emt 0:02:07]} h5 {[%emt 0:02:23]} 32. Na2 {[%emt 0:01:50]} Bxc4 {[%emt 0:00:23]} 33. bxc4 {[%emt 0:00:37]} Nc5 {[%emt 0:00:04]} 34. Qd1 {[%emt 0:00:43]} Qc6 {[%emt 0:00:19]} 35. Rfe1 {[%emt 0:01:27]} Qg6 {[%emt 0:03:03]} 36. Rf2 {[%emt 0:01:58]} h4 {[%emt 0:00:22]} 37. Nc1 {[%emt 0:02:02]} Rg5 {[%emt 0:02:00]} 38. Qc2 {[%emt 0:00:35]} Qf5 {[%emt 0:01:56]} 39. Ref1 {[%emt 0:01:06]} Qxh3 {[%emt 0:00:50]} 40. f4 {[%emt 0:00:00]} exf4 {[%emt 0:00:00]} 41. Rxf4 {[%emt 0:01:18]} Qe3+ {[%emt 0:00:15]} 42. R4f2 {[%emt 0:01:22]} h3 {[%emt 0:00:23]} 43. Kh2 {[%emt 0:00:53]} Rxg2+ {[%emt 0:03:24]} 44. Rxg2 {[%emt 0:00:12]} Rxf1 {[%emt 0:00:04]} 45. Rd2 {[%emt 0:00:37]} Qg1+ {[%emt 0:00:12]} 46. Kxh3 {[%emt 0:00:07]} Rf3+ {[%emt 0:00:01]} 47. Kh4 {[%emt 0:00:08]} Qg3+ {[%emt 0:00:04]} 48. Kh5 {[%emt 0:00:05]} Rf5# {[%emt 0:00:04]} 0-1

[Event "FIDE WYCC Girls U14 2023"]
[Site "Montesilvano"]
[Date "2023.11.16"]
[Round "4.31"]
[White "Field, Lila Quinn"]
[Black "Caku, Kler"]
[Result "0-1"]
[ECO "C54"]
[WhiteElo "1616"]
[BlackElo "1740"]
[Annotator "NA RC"]
[PlyCount "76"]
[EventDate "2023.11.13"]
[EventType "swiss"]
[EventCountry "ITA"]
[SourceTitle "playchess.com"]
[Source "ChessBase"]
[SourceQuality "1"]
[TimeControl "40/5400+30:1800+30"]

1. e4 {[%emt 0:00:03]} e5 {[%emt 0:00:07]} 2. Nf3 {[%emt 0:00:06]} Nc6 {[%emt 0:00:14]} 3. Bc4 {[%emt 0:00:09]} Bc5 {[%emt 0:00:13]} 4. c3 {[%emt 0:00:14]} Nf6 {[%emt 0:00:17]} 5. d3 {[%emt 0:00:12]} h6 {[%emt 0:00:46]} 6. Nbd2 {[%emt 0:02:06]} d6 {[%emt 0:00:30]} 7. Bb3 {[%emt 0:00:17]} O-O {[%emt 0:03:40]} 8. h3 {[%emt 0:01:09]} Be6 {[%emt 0:00:38]} 9. Bc2 {[%emt 0:00:11]} Bb6 {[%emt 0:02:28]} 10. g4 {[%emt 0:02:47]} Nh7 {[%emt 0:06:35]} 11. Rg1 {[%emt 0:07:43]} d5 {[%emt 0:06:33]} 12. Qe2 {[%emt 0:05:14]} dxe4 {[%emt 0:10:37]} 13. dxe4 {[%emt 0:10:23]} a6 {[%emt 0:08:07]} 14. Nf1 {[%emt 0:04:04]} Bc5 {[%emt 0:03:52]} 15. Bd2 {[%emt 0:12:30]} Ng5 {[%emt 0:07:04]} 16. Bxg5 {[%emt 0:09:36]} hxg5 {[%emt 0:00:20]} 17. Ng3 {[%emt 0:02:59]} Qf6 {[%emt 0:02:01]} 18. Nf5 {[%emt 0:05:52]} g6 {[%emt 0:05:06]} 19. h4 {[%emt 0:07:02]} Bxf5 {[%emt 0:07:38]} 20. hxg5 {[%emt 0:01:12]} Qe7 {[%emt 0:04:08]} 21. gxf5 {[%emt 0:00:20]} Rad8 {[%emt 0:05:08]} 22. f6 {[%emt 0:02:53]} Qe6 {[%emt 0:01:37]} 23. Qf1 {[%emt 0:00:17]} Nb4 {[%emt 0:07:56]} 24. Qe2 {[%emt 0:11:08]} Qh3 {[%emt 0:04:06]} 25. Nxe5 {[%emt 0:06:15]} Rfe8 {[%emt 0:04:44]} 26. Nc4 {[%emt 0:04:17]} Nxc2+ {[%emt 0:03:17]} 27. Qxc2 {[%emt 0:00:11]} Qf3 {[%emt 0:02:38]} 28. e5 {[%emt 0:00:52]} b5 {[%emt 0:00:31]} 29. Qe2 {[%emt 0:02:28]} Qxe2+ {[%emt 0:00:12]} 30. Kxe2 {[%emt 0:00:04]} bxc4 {[%emt 0:00:07]} 31. Rh1 {[%emt 0:00:19]} Rxe5+ {[%emt 0:00:05]} 32. Kf3 {[%emt 0:00:20]} Rd3+ {[%emt 0:00:31]} 33. Kf4 {[%emt 0:01:48]} Rf5+ {[%emt 0:01:06]} 34. Ke4 {[%emt 0:00:50]} Bd6 {[%emt 0:02:11]} 35. Rh4 {[%emt 0:01:16]} Re5+ {[%emt 0:00:11]} 36. Kf4 {[%emt 0:00:09]} Re1+ {[%emt 0:00:06]} 37. Kg4 {[%emt 0:00:42]} Re4+ {[%emt 0:00:05]} 38. f4 {[%emt 0:00:10]} Rxf4# 0-1

[Event "FIDE WYCC Girls U14 2023"]
[Site "Montesilvano"]
[Date "2023.11.16"]
[Round "4.32"]
[White "Qi, Jenny"]
[Black "Dimatangihan Anica Shey"]
[Result "1-0"]
[ECO "C65"]
[WhiteElo "1737"]
[BlackElo "1091"]
[Annotator "NA RC"]
[PlyCount "131"]
[EventDate "2023.11.13"]
[EventType "swiss"]
[EventCountry "ITA"]
[SourceTitle "playchess.com"]
[Source "ChessBase"]
[SourceQuality "1"]
[TimeControl "40/5400+30:1800+30"]

1. e4 {[%emt 0:00:02]} e5 {[%emt 0:00:08]} 2. Nf3 {[%emt 0:00:08]} Nc6 {[%emt 0:00:08]} 3. Bb5 {[%emt 0:00:07]} Nf6 {[%emt 0:00:10]} 4. d3 {[%emt 0:00:22]} Bc5 {[%emt 0:01:55]} 5. c3 {[%emt 0:01:45]} d6 {[%emt 0:01:16]} 6. O-O {[%emt 0:00:48]} O-O {[%emt 0:00:19]} 7. Ba4 {[%emt 0:01:19]} h6 {[%emt 0:02:35]} 8. Nbd2 {[%emt 0:01:56]} a6 {[%emt 0:02:11]} 9. Re1 {[%emt 0:02:02]} b5 {[%emt 0:02:31]} 10. Bc2 {[%emt 0:00:20]} Bb6 {[%emt 0:01:20]} 11. Nf1 {[%emt 0:02:04]} Na5 {[%emt 0:01:19]} 12. Ng3 {[%emt 0:05:29]} c5 {[%emt 0:01:27]} 13. d4 {[%emt 0:06:26]} exd4 {[%emt 0:05:17]} 14. cxd4 {[%emt 0:01:01]} Bg4 {[%emt 0:07:15]} 15. d5 {[%emt 0:06:52]} Qc7 {[%emt 0:01:19]} 16. h3 {[%emt 0:01:49]} Bxf3 {[%emt 0:00:35]} 17. Qxf3 {[%emt 0:00:23]} Nc4 {[%emt 0:00:36]} 18. Nf5 {[%emt 0:03:09]} Ne5 {[%emt 0:12:24]} 19. Qg3 {[%emt 0:03:49]} Ng6 {[%emt 0:07:29]} 20. Qxd6 {[%emt 0:03:51]} Qxd6 {[%emt 0:00:53]} 21. Nxd6 {[%emt 0:00:09]} Rad8 {[%emt 0:00:25]} 22. Nf5 {[%emt 0:01:33]} Rfe8 {[%emt 0:00:36]} 23. Bd2 {[%emt 0:05:28]} Ne5 {[%emt 0:04:04]} 24. Rad1 {[%emt 0:09:28]} c4 {[%emt 0:04:54]} 25. Bc3 {[%emt 0:03:46]} b4 {[%emt 0:18:55]} 26. Bxb4 {[%emt 0:04:13]} Nd3 {[%emt 0:00:41]} 27. Bxd3 {[%emt 0:01:01]} cxd3 {[%emt 0:00:11]} 28. Be7 {[%emt 0:01:02]} Rc8 {[%emt 0:06:26]} 29. Bxf6 {[%emt 0:03:10]} gxf6 {[%emt 0:02:12]} 30. Nd6 {[%emt 0:02:57]} d2 {[%emt 0:04:26]} 31. Rxd2 {[%emt 0:01:29]} Ba5 {[%emt 0:00:48]} 32. Nxe8 {[%emt 0:00:36]} Bxd2 {[%emt 0:00:27]} 33. Nxf6+ {[%emt 0:00:28]} Kg7 {[%emt 0:00:36]} 34. Rd1 {[%emt 0:00:16]} Rc1 {[%emt 0:02:31]} 35. Rxc1 {[%emt 0:00:30]} Bxc1 {[%emt 0:00:07]} 36. Ne8+ {[%emt 0:01:05]} Kf8 {[%emt 0:00:19]} 37. Nc7 {[%emt 0:00:13]} a5 {[%emt 0:01:08]} 38. b3 {[%emt 0:01:29]} Ke7 {[%emt 0:01:05]} 39. Na8 {[%emt 0:00:39]} Kd6 {[%emt 0:00:44]} 40. Nb6 {[%emt 0:00:00]} Bg5 {[%emt 0:00:00]} 41. Nc4+ {[%emt 0:00:47]} Kc5 {[%emt 0:01:40]} 42. Nxa5 {[%emt 0:00:49]} Kd4 {[%emt 0:00:28]} 43. f3 {[%emt 0:01:10]} Kc3 {[%emt 0:00:39]} 44. Nc6 {[%emt 0:00:13]} Bf4 {[%emt 0:00:48]} 45. e5 {[%emt 0:00:19]} Be3+ {[%emt 0:01:37]} 46. Kf1 {[%emt 0:00:12]} Kb2 {[%emt 0:00:42]} 47. d6 {[%emt 0:00:11]} Kxa2 {[%emt 0:00:26]} 48. d7 {[%emt 0:00:06]} Bb6 {[%emt 0:00:09]} 49. d8=Q {[%emt 0:00:14]} Bxd8 {[%emt 0:00:10]} 50. Nxd8 {[%emt 0:00:08]} Kxb3 {[%emt 0:00:06]} 51. Nxf7 {[%emt 0:00:10]} Kc4 {[%emt 0:00:07]} 52. e6 {[%emt 0:00:06]} Kd3 {[%emt 0:00:30]} 53. e7 {[%emt 0:00:09]} Ke3 {[%emt 0:00:32]} 54. e8=Q+ {[%emt 0:00:10]} Kd4 {[%emt 0:00:28]} 55. Qe5+ {[%emt 0:00:07]} Kc4 {[%emt 0:00:10]} 56. Nd6+ {[%emt 0:00:07]} Kd3 {[%emt 0:00:19]} 57. Qd5+ {[%emt 0:00:29]} Kc3 {[%emt 0:00:12]} 58. Ne4+ {[%emt 0:00:13]} Kb4 {[%emt 0:00:17]} 59. Qc5+ {[%emt 0:00:12]} Kb3 {[%emt 0:00:15]} 60. Qc3+ {[%emt 0:00:13]} Ka4 {[%emt 0:00:08]} 61. Qb2 {[%emt 0:00:10]} Ka5 {[%emt 0:00:32]} 62. Ke2 {[%emt 0:00:14]} h5 {[%emt 0:00:13]} 63. Kd3 {[%emt 0:00:07]} h4 {[%emt 0:00:09]} 64. Kc4 {[%emt 0:00:09]} Ka6 {[%emt 0:00:05]} 65. Nc5+ {[%emt 0:00:07]} Ka7 {[%emt 0:00:23]} 66. Qb7# 1-0

[Event "FIDE WYCC Girls U14 2023"]
[Site "Montesilvano"]
[Date "2023.11.16"]
[Round "4.33"]
[White "Stoll, Lucia"]
[Black "Michalska, Lena"]
[Result "1-0"]
[ECO "B27"]
[WhiteElo "1887"]
[BlackElo "1640"]
[Annotator "NA RC"]
[PlyCount "47"]
[EventDate "2023.11.13"]
[EventType "swiss"]
[EventCountry "ITA"]
[SourceTitle "playchess.com"]
[Source "ChessBase"]
[SourceQuality "1"]
[TimeControl "40/5400+30:1800+30"]

1. e4 {[%emt 0:00:01]} c5 {[%emt 0:00:04]} 2. Nf3 {[%emt 0:00:04]} g6 {[%emt 0:00:04]} 3. c3 {[%emt 0:00:16]} d5 {[%emt 0:00:53]} 4. e5 {[%emt 0:00:11]} Bg7 {[%emt 0:06:14]} 5. d4 {[%emt 0:01:07]} Bg4 {[%emt 0:02:22]} 6. Bb5+ {[%emt 0:01:09]} Nc6 {[%emt 0:02:07]} 7. Nbd2 {[%emt 0:04:15]} cxd4 {[%emt 0:02:37]} 8. Bxc6+ {[%emt 0:00:20]} bxc6 {[%emt 0:00:07]} 9. cxd4 {[%emt 0:00:06]} Qb6 {[%emt 0:07:59]} 10. O-O {[%emt 0:01:55]} c5 {[%emt 0:08:00]} 11. h3 {[%emt 0:07:51]} Bd7 {[%emt 0:00:15]} 12. dxc5 {[%emt 0:04:07]} Qxc5 {[%emt 0:00:02]} 13. Nb3 {[%emt 0:00:50]} Qc6 {[%emt 0:02:51]} 14. Be3 {[%emt 0:05:41]} e6 {[%emt 0:05:54]} 15. Rc1 {[%emt 0:01:48]} Qa4 {[%emt 0:04:48]} 16. Qd2 {[%emt 0:11:58]} Ne7 {[%emt 0:05:00]} 17. Nc5 {[%emt 0:03:01]} Qb5 {[%emt 0:03:51]} 18. a4 {[%emt 0:07:22]} Qb8 {[%emt 0:05:38]} 19. Na6 {[%emt 0:02:03]} Qb7 {[%emt 0:00:14]} 20. Nc7+ {[%emt 0:00:09]} Kf8 {[%emt 0:00:08]} 21. Nxa8 {[%emt 0:00:17]} Qxa8 {[%emt 0:00:08]} 22. Rc7 {[%emt 0:02:04]} Qe8 {[%emt 0:04:20]} 23. Qb4 {[%emt 0:02:57]} f6 {[%emt 0:07:08]} 24. Qd6 {[%emt 0:02:11]} 1-0

[Event "FIDE WYCC Girls U14 2023"]
[Site "Montesilvano"]
[Date "2023.11.16"]
[Round "4.34"]
[White "Smietanska, Wiktoria"]
[Black "Sivashankar, Samyukta"]
[Result "1-0"]
[ECO "D35"]
[WhiteElo "2009"]
[BlackElo "1348"]
[Annotator "NA RC"]
[PlyCount "71"]
[EventDate "2023.11.13"]
[EventType "swiss"]
[EventCountry "ITA"]
[SourceTitle "playchess.com"]
[Source "ChessBase"]
[SourceQuality "1"]
[TimeControl "40/5400+30:1800+30"]

1. c4 {[%emt 0:00:03]} e6 {[%emt 0:00:15]} 2. Nc3 {[%emt 0:00:10]} d5 {[%emt 0:00:34]} 3. d4 {[%emt 0:00:11]} Nf6 {[%emt 0:00:21]} 4. cxd5 {[%emt 0:00:07]} exd5 {[%emt 0:00:28]} 5. Bg5 {[%emt 0:00:08]} Be7 {[%emt 0:01:43]} 6. e3 {[%emt 0:00:17]} O-O {[%emt 0:00:24]} 7. Bd3 {[%emt 0:00:15]} h6 {[%emt 0:00:40]} 8. Bh4 {[%emt 0:00:52]} c5 {[%emt 0:03:02]} 9. dxc5 {[%emt 0:02:53]} Bxc5 {[%emt 0:00:50]} 10. Nge2 {[%emt 0:01:54]} Qb6 {[%emt 0:10:22]} 11. Rb1 {[%emt 0:06:32]} Nbd7 {[%emt 0:09:17]} 12. O-O {[%emt 0:02:24]} a6 {[%emt 0:03:11]} 13. Qc2 {[%emt 0:05:30]} Bd6 {[%emt 0:06:22]} 14. Rbc1 {[%emt 0:06:16]} Qb4 {[%emt 0:04:13]} 15. Nd4 {[%emt 0:04:01]} Be5 {[%emt 0:06:51]} 16. Nf3 {[%emt 0:05:38]} d4 {[%emt 0:14:24]} 17. Bxf6 {[%emt 0:04:07]} Bxf6 {[%emt 0:01:43]} 18. Nd5 {[%emt 0:00:10]} Qa5 {[%emt 0:06:42]} 19. Nxf6+ {[%emt 0:01:57]} Nxf6 {[%emt 0:00:25]} 20. exd4 {[%emt 0:03:15]} Qxa2 {[%emt 0:01:15]} 21. Bc4 {[%emt 0:00:13]} Qa5 {[%emt 0:00:28]} 22. Qb3 {[%emt 0:01:01]} Bf5 {[%emt 0:07:57]} 23. Ne5 {[%emt 0:00:59]} Ne4 {[%emt 0:06:45]} 24. Bxf7+ {[%emt 0:02:37]} Kh7 {[%emt 0:03:11]} 25. Qf3 {[%emt 0:06:47]} Rxf7 {[%emt 0:04:25]} 26. Nxf7 {[%emt 0:02:33]} Nd2 {[%emt 0:01:04]} 27. Qxb7 {[%emt 0:00:28]} Be4 {[%emt 0:00:23]} 28. Qe7 {[%emt 0:00:58]} Qd5 {[%emt 0:01:31]} 29. Rfd1 {[%emt 0:07:57]} Qxd4 {[%emt 0:02:18]} 30. Rxd2 {[%emt 0:02:10]} Qxd2 {[%emt 0:00:21]} 31. Qxe4+ {[%emt 0:00:07]} Kg8 {[%emt 0:00:09]} 32. Qxa8+ {[%emt 0:00:07]} Kxf7 {[%emt 0:00:43]} 33. Qf3+ {[%emt 0:00:06]} Kg8 {[%emt 0:00:53]} 34. Rc8+ {[%emt 0:00:06]} Kh7 {[%emt 0:00:12]} 35. Qf5+ {[%emt 0:00:05]} g6 {[%emt 0:00:27]} 36. Qf7# {[%emt 0:00:04]} 1-0

[Event "FIDE WYCC Girls U14 2023"]
[Site "Montesilvano"]
[Date "2023.11.16"]
[Round "4.35"]
[White "Poetscher, Katharina"]
[Black "Jiang, Tianyu"]
[Result "0-1"]
[ECO "B22"]
[WhiteElo "1345"]
[BlackElo "1917"]
[Annotator "NA RC"]
[PlyCount "60"]
[EventDate "2023.11.13"]
[EventType "swiss"]
[EventCountry "ITA"]
[SourceTitle "playchess.com"]
[Source "ChessBase"]
[SourceQuality "1"]
[TimeControl "40/5400+30:1800+30"]

1. e4 {[%emt 0:00:02]} c5 {[%emt 0:00:05]} 2. c3 {[%emt 0:00:03]} Nf6 {[%emt 0:00:06]} 3. e5 {[%emt 0:00:04]} Nd5 {[%emt 0:00:03]} 4. d4 {[%emt 0:00:07]} cxd4 {[%emt 0:00:05]} 5. cxd4 {[%emt 0:00:06]} d6 {[%emt 0:00:02]} 6. Nf3 {[%emt 0:02:31]} Nc6 {[%emt 0:00:07]} 7. Bc4 {[%emt 0:01:13]} Nb6 {[%emt 0:00:27]} 8. Bb3 {[%emt 0:04:53]} dxe5 {[%emt 0:02:06]} 9. dxe5 {[%emt 0:00:13]} Qxd1+ {[%emt 0:00:55]} 10. Bxd1 {[%emt 0:00:06]} Nc4 {[%emt 0:13:34]} 11. Ba4 {[%emt 0:01:44]} Bd7 {[%emt 0:00:33]} 12. e6 {[%emt 0:05:38]} Bxe6 {[%emt 0:02:15]} 13. Bxc6+ {[%emt 0:00:13]} bxc6 {[%emt 0:00:04]} 14. b3 {[%emt 0:01:40]} Nb6 {[%emt 0:01:02]} 15. Bb2 {[%emt 0:04:15]} Bd5 {[%emt 0:02:32]} 16. Nbd2 {[%emt 0:04:08]} f6 {[%emt 0:01:43]} 17. O-O {[%emt 0:04:09]} e5 {[%emt 0:00:36]} 18. Rfe1 {[%emt 0:01:38]} O-O-O {[%emt 0:02:36]} 19. Rac1 {[%emt 0:02:02]} Kb7 {[%emt 0:01:36]} 20. Nh4 {[%emt 0:03:12]} Bxg2 {[%emt 0:03:29]} 21. Nxg2 {[%emt 0:02:53]} Rxd2 {[%emt 0:00:06]} 22. Rb1 {[%emt 0:00:42]} Bb4 {[%emt 0:01:10]} 23. Rf1 {[%emt 0:01:41]} Rhd8 {[%emt 0:00:29]} 24. a3 {[%emt 0:00:39]} Be7 {[%emt 0:00:12]} 25. Ne3 {[%emt 0:00:34]} Bc5 {[%emt 0:00:24]} 26. Nc4 {[%emt 0:01:10]} Nxc4 {[%emt 0:00:09]} 27. bxc4 {[%emt 0:00:06]} Kc8 {[%emt 0:00:20]} 28. Bc3 {[%emt 0:00:48]} Rc2 {[%emt 0:00:10]} 29. Ba5 {[%emt 0:02:02]} Rd3 {[%emt 0:00:27]} 30. Kg2 {[%emt 0:04:08]} Rxc4 {[%emt 0:00:43]} 0-1

[Event "FIDE WYCC Girls U14 2023"]
[Site "Montesilvano"]
[Date "2023.11.17"]
[Round "5.1"]
[White "Ciarletta, Iris"]
[Black "Shukhman, Anna"]
[Result "*"]
[WhiteElo "1882"]
[BlackElo "2263"]
[Annotator "ChessBase"]
[PlyCount "88"]
[EventDate "2023.11.13"]
[EventType "swiss"]
[EventCountry "ITA"]
[SourceTitle "playchess.com"]
[Source "ChessBase"]
[SourceQuality "1"]
[TimeControl "40/5400+30:1800+30"]

1. d4 {[%emt 0:00:33]} Nf6 {[%emt 0:00:03]} 2. c4 {[%emt 0:00:50]} e6 {[%emt 0:00:04]} 3. Nf3 {[%emt 0:00:15]} d5 {[%emt 0:00:04]} 4. Nc3 {[%emt 0:00:34]} Bb4 {[%emt 0:00:05]} 5. e3 {[%emt 0:06:21]} O-O {[%emt 0:00:30]} 6. cxd5 {[%emt 0:04:12]} exd5 {[%emt 0:03:35]} 7. Qc2 {[%emt 0:01:31]} c6 {[%emt 0:01:55]} 8. Bd3 {[%emt 0:01:18]} Re8 {[%emt 0:06:54]} 9. O-O {[%emt 0:03:57]} Nbd7 {[%emt 0:00:36]} 10. Bd2 {[%emt 0:03:31]} h6 {[%emt 0:03:15]} 11. Ne2 {[%emt 0:03:19]} Bd6 {[%emt 0:01:22]} 12. Ng3 {[%emt 0:05:34]} Nf8 {[%emt 0:06:27]} 13. b4 {[%emt 0:02:38]} Bg4 {[%emt 0:05:46]} 14. Rfc1 {[%emt 0:05:53]} Rc8 {[%emt 0:04:36]} 15. a4 {[%emt 0:03:31]} N6d7 {[%emt 0:20:21]} 16. Bc3 {[%emt 0:12:48]} Qf6 {[%emt 0:14:26]} 17. Nd2 {[%emt 0:02:58]} Bxg3 {[%emt 0:00:50]} 18. hxg3 {[%emt 0:00:48]} Bh5 {[%emt 0:00:56]} 19. Qb2 {[%emt 0:04:32]} Qg5 {[%emt 0:02:00]} 20. b5 {[%emt 0:06:15]} Rxe3 {[%emt 0:06:38]} 21. fxe3 {[%emt 0:05:21]} Qxe3+ {[%emt 0:00:07]} 22. Kh2 {[%emt 0:00:11]} Qxd3 {[%emt 0:00:04]} 23. Qc2 {[%emt 0:03:01]} Qe2 {[%emt 0:02:04]} 24. Re1 {[%emt 0:02:14]} Qg4 {[%emt 0:00:24]} 25. Nf3 {[%emt 0:01:56]} Bg6 {[%emt 0:00:29]} 26. Qd2 {[%emt 0:01:14]} Be4 {[%emt 0:01:13]} 27. Rf1 {[%emt 0:01:56]} Ne6 {[%emt 0:00:29]} 28. Rac1 {[%emt 0:04:33]} Qh5+ {[%emt 0:11:32]} 29. Kg1 {[%emt 0:00:22]} Qg6 {[%emt 0:00:02]} 30. bxc6 {[%emt 0:02:35]} bxc6 {[%emt 0:00:15]} 31. Qf2 {[%emt 0:00:23]} Rb8 {[%emt 0:03:33]} 32. Rfd1 {[%emt 0:04:10]} Nf6 {[%emt 0:01:41]} 33. Ne5 {[%emt 0:01:27]} Qh5 {[%emt 0:00:02]} 34. Be1 {[%emt 0:00:13]} Re8 {[%emt 0:01:21]} 35. Rd2 {[%emt 0:02:59]} Nxd4 {[%emt 0:01:00]} 36. Qxd4 {[%emt 0:01:08]} Rxe5 {[%emt 0:00:02]} 37. g4 {[%emt 0:00:27]} Nxg4 {[%emt 0:00:21]} 38. Bg3 {[%emt 0:00:16]} Rg5 {[%emt 0:02:07]} 39. Rxc6 {[%emt 0:01:38]} Nf6 {[%emt 0:00:09]} 40. Rc3 {[%emt 0:00:00]} Qg6 {[%emt 0:00:00]} 41. Qxa7 {[%emt 0:04:09]} Kh7 {[%emt 0:04:28]} 42. Kf2 {[%emt 0:03:01]} Bf5 {[%emt 0:06:26]} 43. Re2 {[%emt 0:04:48]} Bd3 {[%emt 0:00:26]} 44. Re3 {[%emt 0:01:41]} Ng4+ {[%emt 0:00:39]} *

[Event "FIDE WYCC Girls U14 2023"]
[Site "Montesilvano"]
[Date "2023.11.17"]
[Round "5.2"]
[White "Agamyradova, Mahri"]
[Black "Piddubna, Bozhena"]
[Result "1/2-1/2"]
[ECO "A47"]
[WhiteElo "1652"]
[BlackElo "2081"]
[Annotator "NA"]
[PlyCount "90"]
[EventDate "2023.11.13"]
[EventType "swiss"]
[EventCountry "ITA"]
[SourceTitle "playchess.com"]
[Source "ChessBase"]
[SourceQuality "1"]
[TimeControl "40/5400+30:1800+30"]

1. d4 {[%emt 0:00:03]} Nf6 {[%emt 0:00:12]} 2. Nf3 {[%emt 0:00:09]} b6 {[%emt 0:00:25]} 3. Bf4 {[%emt 0:00:18]} Bb7 {[%emt 0:00:14]} 4. e3 {[%emt 0:00:18]} Nh5 {[%emt 0:00:18]} 5. Bg3 {[%emt 0:03:01]} Nxg3 {[%emt 0:00:32]} 6. hxg3 {[%emt 0:00:09]} g6 {[%emt 0:00:28]} 7. Nbd2 {[%emt 0:00:35]} Bg7 {[%emt 0:00:07]} 8. c3 {[%emt 0:00:19]} d6 {[%emt 0:01:13]} 9. Bd3 {[%emt 0:03:45]} Nd7 {[%emt 0:00:22]} 10. Qc2 {[%emt 0:01:10]} c5 {[%emt 0:01:04]} 11. O-O-O {[%emt 0:02:21]} a6 {[%emt 0:01:00]} 12. Rh2 {[%emt 0:06:09]} b5 {[%emt 0:07:13]} 13. Rdh1 {[%emt 0:02:11]} Nf8 {[%emt 0:00:23]} 14. Kb1 {[%emt 0:03:41]} c4 {[%emt 0:03:42]} 15. Be2 {[%emt 0:01:21]} Qd7 {[%emt 0:05:00]} 16. e4 {[%emt 0:06:40]} Rc8 {[%emt 0:05:08]} 17. Ng5 {[%emt 0:05:43]} h6 {[%emt 0:01:25]} 18. f4 {[%emt 0:01:02]} Rg8 {[%emt 0:11:04]} 19. Nh3 {[%emt 0:03:27]} Ne6 {[%emt 0:03:56]} 20. Bg4 {[%emt 0:15:46]} h5 {[%emt 0:01:22]} 21. Bf3 {[%emt 0:04:27]} b4 {[%emt 0:05:00]} 22. f5 {[%emt 0:03:05]} Nf8 {[%emt 0:07:13]} 23. Nf2 {[%emt 0:07:32]} Qb5 {[%emt 0:08:31]} 24. fxg6 {[%emt 0:03:35]} fxg6 {[%emt 0:00:14]} 25. g4 {[%emt 0:01:06]} bxc3 {[%emt 0:01:29]} 26. Qxc3 {[%emt 0:07:20]} Ne6 {[%emt 0:00:24]} 27. a4 Qb6 {[%emt 0:16:23]} 28. Nxc4 {[%emt 0:17:18]} Qxd4 {[%emt 0:00:23]} 29. Qxd4 {[%emt 0:00:56]} Bxd4 {[%emt 0:00:16]} 30. Na5 {[%emt 0:00:03]} Bxf2 {[%emt 0:00:32]} 31. Nxb7 {[%emt 0:01:02]} Bg3 {[%emt 0:00:30]} 32. Rh3 {[%emt 0:00:08]} h4 {[%emt 0:00:28]} 33. Rd1 {[%emt 0:00:39]} Ng5 {[%emt 0:02:03]} 34. Rhh1 {[%emt 0:00:10]} Rb8 {[%emt 0:01:00]} 35. Na5 {[%emt 0:01:19]} Rb4 {[%emt 0:00:56]} 36. e5 {[%emt 0:00:26]} Nxf3 {[%emt 0:00:33]} 37. gxf3 {[%emt 0:01:09]} Bxe5 {[%emt 0:00:15]} 38. b3 {[%emt 0:00:11]} g5 {[%emt 0:00:42]} 39. Kc2 {[%emt 0:00:18]} Kf7 {[%emt 0:01:12]} 40. Rd3 {[%emt 0:00:00]} Rc8+ {[%emt 0:00:00]} 41. Kd2 {[%emt 0:00:56]} Bf4+ {[%emt 0:01:34]} 42. Ke2 {[%emt 0:00:51]} Rc2+ {[%emt 0:00:55]} 43. Ke1 {[%emt 0:00:06]} Rc1+ {[%emt 0:00:52]} 44. Rd1 {[%emt 0:00:02]} Rc5 {[%emt 0:00:10]} 45. Nc4 {[%emt 0:00:08]} Rxb3 {[%emt 0:00:10]} 1/2-1/2